bitfinex/quotes_BTCUSD_20251231
["timestamp","ask_amount","ask_price","bid_price","bid_amount"]
[1767204349937,0.25218397,87718.0,87705.0,0.04100727]
[1767204350144,0.000227,87705.0,87704.0,0.0115853]
[1767204350726,0.24147613,87712.0,87704.0,0.0115853]
[1767204351370,0.24147613,87716.0,87704.0,0.01169143]
[1767204351699,0.01070687,87715.0,87704.0,0.01105492]
[1767204351983,0.01070687,87714.0,87704.0,0.01105492]
[1767204352184,0.24147613,87715.0,87704.0,0.01105492]
[1767204352387,0.24147613,87713.0,87704.0,0.01105492]
[1767204352527,0.42473052,87714.0,87699.0,0.01144]
[1767204352528,0.24147613,87703.0,87699.0,0.01144]
[1767204352756,0.24147613,87708.0,87699.0,0.01144]
[1767204352960,0.24158222,87708.0,87699.0,0.01144]
[1767204356626,0.24158222,87708.0,87698.0,0.01144]
[1767204356948,0.06556059,87707.0,87698.0,0.01144]
[1767204357447,0.06523472,87707.0,87698.0,0.00127186]
[1767204358153,0.24158222,87708.0,87698.0,0.00127186]
[1767204358621,0.24125873,87708.0,87698.0,0.00127186]
[1767204358734,0.24125873,87708.0,87698.0,0.41529551]
[1767204359745,0.24125873,87708.0,87698.0,0.00127186]
[1767204362377,0.24093524,87708.0,87698.0,0.00127186]
[1767204362930,0.24147613,87714.0,87708.0,0.00032191]
[1767204363470,0.24147613,87714.0,87700.0,0.41402365]
[1767204365601,0.24147613,87714.0,87708.0,0.00032349]
[1767204365909,0.24147613,87714.0,87700.0,0.41402365]
[1767204368809,0.06669398,87713.0,87700.0,0.41402365]
[1767204369225,0.30817011,87713.0,87700.0,0.41402365]
[1767204370082,0.30817011,87713.0,87700.0,0.42546365]
[1767204370083,0.24147613,87713.0,87700.0,0.42546365]
[1767204372483,0.24147613,87713.0,87700.0,0.42490152]
[1767204378390,0.24147613,87713.0,87700.0,0.46590879]
[1767204383717,0.24147613,87713.0,87700.0,0.05244727]
[1767204383919,0.24147613,87713.0,87700.0,0.46647092]
[1767204384524,0.24147613,87713.0,87700.0,0.46643786]
[1767204391303,0.24147613,87713.0,87701.0,0.04100727]
[1767204397942,0.22116527,87725.0,87713.0,0.000549]
[1767204398124,0.01070743,87724.0,87716.0,0.41399059]
[1767204398321,0.01070743,87723.0,87716.0,0.41399059]
[1767204398496,0.22116527,87725.0,87716.0,0.41399059]
[1767204398714,0.01070469,87724.0,87716.0,0.41399059]
[1767204398915,0.22116527,87725.0,87714.0,0.01144]
[1767204399120,0.01070484,87724.0,87714.0,0.42543059]
[1767204399356,0.22116527,87725.0,87714.0,0.01144]
[1767204399558,0.0001453,87726.0,87714.0,0.0339803]
[1767204399720,0.01070261,87725.0,87714.0,0.0339803]
[1767204399914,0.0001453,87726.0,87714.0,0.0339803]
[1767204400124,0.01070261,87725.0,87714.0,0.01144]
[1767204400322,0.0001453,87726.0,87714.0,0.01144]
[1767204400812,0.22131057,87726.0,87714.0,0.01144]
[1767204404260,0.24458563,87726.0,87714.0,0.01144]
[1767204405078,0.24458563,87726.0,87714.0,0.01089]
[1767204405286,0.22116527,87724.0,87714.0,0.01089]
[1767204407229,0.22116527,87722.0,87701.0,0.04100727]
[1767204407539,0.41399059,87724.0,87701.0,0.04136143]
[1767204407540,0.22116527,87719.0,87701.0,0.04136143]
[1767204407742,0.22116527,87719.0,87701.0,0.05280143]
[1767204408062,0.22116527,87717.0,87701.0,0.01179416]
[1767204409310,0.00032523,87713.0,87701.0,0.01179416]
[1767204409518,0.2214905,87713.0,87701.0,0.01179416]
[1767204410870,0.2214905,87713.0,87701.0,0.00035416]
[1767204411378,0.22116527,87713.0,87701.0,0.01179416]
[1767204412048,0.22116527,87713.0,87701.0,0.01146838]
[1767204413850,0.22116527,87713.0,87701.0,2.838e-05]
[1767204415605,0.22061627,87713.0,87701.0,2.838e-05]
[1767204415806,0.22061627,87713.0,87701.0,0.04103565]
[1767204418885,0.01144,87716.0,87701.0,0.0603304]
[1767204420257,0.18689539,87721.0,87706.0,0.41399059]
[1767204420432,0.19833539,87721.0,87710.0,0.41399059]
[1767204422534,0.18689539,87721.0,87710.0,0.41399059]
[1767204422731,0.01144,87724.0,87710.0,0.41399059]
[1767204422931,0.18704069,87726.0,87710.0,0.43017099]
[1767204423176,0.0106973,87725.0,87710.0,0.43017099]
[1767204423382,0.18689539,87725.0,87710.0,0.43017099]
[1767204423875,0.18689539,87725.0,87710.0,0.41399059]
[1767204425232,0.01069797,87724.0,87710.0,0.41399059]
[1767204425434,0.18689539,87724.0,87710.0,0.41399059]
[1767204425982,0.18689539,87722.0,87710.0,0.41399059]
[1767204428103,0.18704069,87726.0,87710.0,0.41399059]
[1767204428261,0.01069981,87725.0,87710.0,0.41399059]
[1767204428490,0.18704069,87726.0,87710.0,0.41399059]
[1767204428491,0.01069981,87724.0,87710.0,0.41399059]
[1767204428698,0.18704069,87726.0,87710.0,0.41399059]
[1767204428859,0.18689539,87723.0,87710.0,0.41399059]
[1767204429908,0.18689539,87733.0,87713.0,0.41399059]
[1767204430059,0.18689539,87730.0,87710.0,0.42504376]
[1767204430267,0.18689539,87728.0,87710.0,0.49378018]
[1767204430602,0.19759523,87727.0,87710.0,0.49378018]
[1767204430806,0.19759523,87726.0,87710.0,0.49378018]
[1767204431024,0.01069984,87725.0,87710.0,0.49378018]
[1767204431225,0.19759523,87725.0,87710.0,0.49378018]
[1767204431365,0.18689539,87723.0,87711.0,0.06147847]
[1767204431566,0.18689539,87723.0,87710.0,0.41399059]
[1767204431814,0.18689539,87723.0,87708.0,0.05244727]
[1767204432393,0.18689539,87723.0,87710.0,0.41399059]
[1767204432599,0.18689539,87730.0,87713.0,0.41399059]
[1767204432793,0.01070051,87729.0,87720.0,0.41399059]
[1767204433121,0.01070051,87728.0,87721.0,0.01139977]
[1767204433327,0.18689539,87742.0,87728.0,0.00055]
[1767204433528,0.01069927,87741.0,87730.0,0.41399059]
[1767204433739,0.01069927,87740.0,87730.0,0.41399059]
[1767204433897,0.18689539,87742.0,87730.0,0.41399059]
[1767204434089,0.18689539,87742.0,87730.0,0.46153233]
[1767204435349,0.18689539,87742.0,87730.0,0.41399059]
[1767204437341,0.01144,87748.0,87730.0,0.42031484]
[1767204438579,0.01144,87748.0,87696.0,0.10139567]
[1767204438580,0.000549,87730.0,87725.0,0.01144]
[1767204438777,0.18689539,87742.0,87725.0,0.01144]
[1767204440920,0.20674346,87742.0,87725.0,0.01144]
[1767204441353,0.20674346,87742.0,87730.0,0.41399059]
[1767204441780,0.18689539,87742.0,87730.0,0.41399059]
[1767204443838,0.18689539,87742.0,87725.0,0.01144]
[1767204446505,0.18689539,87742.0,87730.0,0.41372817]
[1767204447430,0.18689539,87742.0,87725.0,0.01144]
[1767204447596,0.18689539,87742.0,87730.0,0.41372817]
[1767204448607,0.18689539,87742.0,87732.0,0.41372817]
[1767204449781,0.1774036,87748.0,87732.0,0.41372817]
[1767204450933,0.0001764,87761.0,87746.0,0.01139653]
[1767204451128,0.1659636,87782.0,87761.0,0.000176]
[1767204451350,0.1659636,87779.0,87755.0,0.03066809]
[1767204451532,0.1659636,87779.0,87760.0,0.41372817]
[1767204451938,0.1659636,87779.0,87769.0,0.41372817]
[1767204452140,0.000549,87769.0,87764.0,0.01144]
[1767204452356,0.1659636,87774.0,87764.0,0.01144]
[1767204452981,0.000549,87764.0,87756.0,0.00716138]
[1767204453136,0.1665126,87764.0,87757.0,0.01144]
[1767204453544,0.1659636,87764.0,87757.0,0.01144]
[1767204454543,0.16631771,87764.0,87757.0,0.01144]
[1767204458144,0.00035411,87764.0,87757.0,0.01144]
[1767204458985,0.16631771,87764.0,87757.0,0.010891]
[1767204459867,0.0410663,87817.0,87762.0,0.01139445]
[1767204460075,0.2,87820.0,87775.0,0.14731405]
[1767204460076,0.16546697,87793.0,87775.0,0.14731405]
[1767204460329,0.16546697,87793.0,87780.0,0.41372817]
[1767204460665,0.1659636,87798.0,87780.0,0.41372817]
[1767204462262,0.1659636,87798.0,87781.0,0.05730851]
[1767204462460,0.1659636,87826.0,87789.0,0.14610359]
[1767204462665,0.1659636,87826.0,87784.0,0.05695784]
[1767204462666,0.1659636,87818.0,87800.0,0.41372817]
[1767204462870,0.1659636,87818.0,87800.0,0.46931135]
[1767204463716,0.1659636,87816.0,87800.0,0.46926852]
[1767204464248,0.1659636,87816.0,87806.0,0.41372817]
[1767204464689,0.1659636,87842.0,87817.0,0.12715688]
[1767204464866,0.1659636,87849.0,87830.0,3e-08]
[1767204465087,0.1659636,87839.0,87820.0,0.41372817]
[1767204465415,0.16606981,87839.0,87820.0,0.41372817]
[1767204465640,0.16606981,87839.0,87821.0,0.0566185]
[1767204466068,0.16606981,87839.0,87829.0,0.41372817]
[1767204467722,0.16606981,87839.0,87822.0,0.01148]
[1767204467897,0.1659636,87845.0,87839.0,0.000549]
[1767204468320,0.0002,87852.0,87830.0,0.42520817]
[1767204468482,0.1659636,87860.0,87840.0,0.41372817]
[1767204468683,0.1659636,87869.0,87841.0,0.05285282]
[1767204468929,0.1659636,87859.0,87841.0,0.06423702]
[1767204469099,0.01148,87872.0,87851.0,0.05691393]
[1767204469302,0.1659636,87871.0,87860.0,0.41372817]
[1767204469950,0.1659636,87871.0,87852.0,0.01148]
[1767204469951,0.1661169,87871.0,87852.0,0.01148]
[1767204470156,0.1661169,87871.0,87853.0,0.05162738]
[1767204470352,0.04808644,87887.0,87870.0,0.41372817]
[1767204470580,0.04704894,87887.0,87871.0,0.01148]
[1767204470761,0.04704894,87887.0,87871.0,0.08585506]
[1767204470915,0.04808644,87895.0,87877.0,0.61846754]
[1767204471131,0.04808644,87895.0,87877.0,0.00010611]
[1767204471757,0.04808644,87895.0,87879.0,0.01137928]
[1767204471965,0.04808644,87895.0,87883.0,0.01137876]
[1767204472263,0.04583056,87896.0,87882.0,0.01137889]
[1767204472455,0.02745446,87903.0,87886.0,0.68673737]
[1767204472713,0.02745446,87903.0,87889.0,0.01137798]
[1767204472714,0.02615674,87903.0,87889.0,0.01137798]
[1767204472949,0.02615674,87903.0,87890.0,0.64246356]
[1767204473083,0.04808644,87923.0,87890.0,0.02399602]
[1767204473260,0.04808644,87919.0,87891.0,0.01137772]
[1767204473496,0.04808644,87919.0,87890.0,0.03537387]
[1767204473497,0.04808644,87919.0,87897.0,0.05688469]
[1767204473704,0.04808644,87919.0,87898.0,0.01148]
[1767204473932,0.04808644,87919.0,87898.0,0.06836366]
[1767204474125,0.04808644,87919.0,87895.0,0.01137721]
[1767204474126,0.04808644,87919.0,87899.0,0.01148]
[1767204474845,0.04808644,87919.0,87892.0,0.01150199]
[1767204474846,0.61846754,87910.0,87892.0,0.01150199]
[1767204475003,0.04863544,87899.0,87880.0,0.00797614]
[1767204475320,0.04863544,87899.0,87877.0,0.00010611]
[1767204475519,0.04808644,87899.0,87877.0,0.00010611]
[1767204475770,0.01148,87912.0,87877.0,0.00010611]
[1767204475771,0.04808644,87889.0,87877.0,0.00010611]
[1767204475910,0.04808644,87889.0,87878.0,0.01148]
[1767204476109,0.04808644,87889.0,87877.0,0.00010611]
[1767204477876,0.04808644,87889.0,87878.0,0.00798666]
[1767204479986,0.04808644,87889.0,87877.0,0.00010611]
[1767204480761,0.61846754,87890.0,87861.0,0.01138161]
[1767204480762,0.04808644,87876.0,87861.0,0.01138161]
[1767204481156,0.04819243,87876.0,87865.0,0.01138109]
[1767204481361,0.04819243,87876.0,87870.0,0.01138044]
[1767204481501,0.00010599,87876.0,87871.0,0.01148]
[1767204481704,0.0456,87904.0,87871.0,0.01148]
[1767204481705,0.01137294,87928.0,87881.0,0.01137902]
[1767204481908,0.04808644,87919.0,87886.0,0.01137837]
[1767204482106,0.04808644,87917.0,87888.0,0.01137811]
[1767204482319,0.04808644,87917.0,87901.0,0.01137643]
[1767204482516,0.04808644,87917.0,87906.0,0.01137578]
[1767204482722,0.04808644,87927.0,87913.0,0.01137488]
[1767204482922,0.04808644,87927.0,87915.0,0.01137462]
[1767204483118,0.04808644,87927.0,87914.0,0.05711957]
[1767204483324,0.04808644,87927.0,87914.0,0.04574469]
[1767204483545,0.04808644,87927.0,87914.0,0.010931]
[1767204484429,0.04808644,87927.0,87890.0,0.61846754]
[1767204484631,0.04808644,87927.0,87891.0,0.01148]
[1767204484925,0.04808644,87924.0,87890.0,0.61846754]
[1767204485093,0.04808644,87919.0,87891.0,0.08042272]
[1767204485292,0.04808644,87917.0,87891.0,0.06894272]
[1767204485494,0.04808644,87917.0,87892.0,0.01148]
[1767204486918,0.04808644,87917.0,87890.0,0.61846754]
[1767204486919,0.04808644,87917.0,87900.0,0.61846754]
[1767204487075,0.04808644,87917.0,87901.0,0.02285643]
[1767204487414,0.05956644,87924.0,87907.0,0.61846754]
[1767204487615,0.00010609,87928.0,87906.0,0.22751357]
[1767204487814,0.00010609,87928.0,87915.0,0.01137462]
[1767204488041,0.00092557,87936.0,87928.0,0.000106]
[1767204488801,0.00092557,87936.0,87926.0,0.01148]
[1767204489198,0.04808644,87935.0,87926.0,0.01148]
[1767204489439,0.00092557,87936.0,87926.0,0.01148]
[1767204489591,0.04808644,87948.0,87936.0,0.000549]
[1767204489794,0.01148,87950.0,87936.0,0.00010609]
[1767204490003,0.04808644,87942.0,87936.0,0.00010609]
[1767204490634,0.04808644,87942.0,87929.0,0.01148]
[1767204490832,0.04808644,87928.0,87918.0,0.01148]
[1767204491040,0.04808644,87928.0,87910.0,0.61846754]
[1767204491265,0.04808644,87928.0,87916.0,0.01148]
[1767204491615,0.04808644,87928.0,87915.0,0.01148]
[1767204492038,0.61846754,87940.0,87911.0,0.06423669]
[1767204492039,0.00055,87915.0,87911.0,0.06423669]
[1767204492256,0.00055,87915.0,87910.0,0.01148]
[1767204492774,0.04808644,87919.0,87910.0,0.01148]
[1767204492921,0.04808644,87919.0,87900.0,0.61846754]
[1767204493124,0.04808644,87919.0,87901.0,0.01148]
[1767204493357,0.04819241,87919.0,87901.0,0.01148]
[1767204493669,0.04819241,87919.0,87902.0,0.02172969]
[1767204493871,0.04819241,87919.0,87903.0,0.01148]
[1767204494919,0.04819241,87919.0,87902.0,0.01148]
[1767204495137,0.04808644,87917.0,87902.0,0.01148]
[1767204496274,0.04808644,87915.0,87902.0,0.01148]
[1767204496485,0.04808644,87915.0,87903.0,0.01821301]
[1767204497136,0.04808644,87913.0,87903.0,0.01821301]
[1767204497356,0.04808644,87911.0,87903.0,0.01821301]
[1767204497590,0.04808644,87911.0,87902.0,0.01148]
[1767204498237,0.04808644,87909.0,87902.0,0.01148]
[1767204498451,0.01061127,87908.0,87902.0,0.01148]
[1767204498672,0.04808644,87909.0,87902.0,0.02024561]
[1767204498900,0.01061133,87908.0,87902.0,0.02024561]
[1767204499117,0.009622,87907.0,87902.0,0.02024561]
[1767204499353,0.009622,87906.0,87902.0,0.02024561]
[1767204499558,0.04808644,87909.0,87906.0,0.000549]
[1767204499984,0.04808644,87909.0,87902.0,0.02024561]
[1767204500616,0.04811189,87944.0,87906.0,0.08754638]
[1767204500879,0.04811189,87938.0,87913.0,0.05687388]
[1767204501069,0.04556,87949.0,87914.0,0.11123283]
[1767204501070,0.04811189,87936.0,87914.0,0.11123283]
[1767204501210,0.04811189,87936.0,87914.0,0.04298466]
[1767204501417,0.04811189,87929.0,87914.0,0.03150466]
[1767204501747,0.04811189,87929.0,87915.0,0.01148]
[1767204501954,0.05959189,87929.0,87912.0,0.03066809]
[1767204502300,0.05959189,87929.0,87905.0,0.03066809]
[1767204502429,0.05959189,87929.0,87908.0,0.01148]
[1767204502932,0.05959189,87929.0,87909.0,0.01192761]
[1767204505228,0.05959189,87929.0,87906.0,0.00010597]
[1767204505434,0.05959189,87929.0,87906.0,0.03077406]
[1767204505631,0.04811189,87919.0,87906.0,0.00010597]
[1767204507321,0.04811189,87924.0,87907.0,0.01137565]
[1767204507523,0.04811189,87924.0,87910.0,0.01137527]
[1767204507524,0.05959189,87924.0,87910.0,0.01137527]
[1767204507726,0.05959189,87924.0,87911.0,0.01446332]
[1767204508187,0.04811189,87938.0,87911.0,0.04214809]
[1767204508402,0.04811189,87936.0,87924.0,0.000549]
[1767204508595,0.04811189,87936.0,87917.0,0.03066809]
[1767204509257,0.04811189,87936.0,87918.0,0.03066809]
[1767204509461,0.04811189,87936.0,87919.0,0.02081097]
[1767204509706,0.0002,87960.0,87919.0,0.02081097]
[1767204509899,0.0002,87960.0,87934.0,0.01137216]
[1767204509900,0.04659429,87959.0,87934.0,0.01137216]
[1767204510079,0.04659429,87959.0,87935.0,0.05686017]
[1767204510281,0.04659429,87959.0,87937.0,0.04203986]
[1767204510499,0.04659429,87959.0,87938.0,0.01148]
[1767204510657,0.04659429,87959.0,87939.0,0.01331241]
[1767204511281,0.04811189,87957.0,87939.0,0.01331241]
[1767204511467,0.00035363,87959.0,87939.0,0.01331241]
[1767204511468,0.04811189,87955.0,87939.0,0.01331241]
[1767204511634,0.04811189,87953.0,87939.0,0.01331241]
[1767204511960,0.04811189,87951.0,87940.0,0.01942362]
[1767204512203,0.04811189,87949.0,87938.0,0.01148]
[1767204512378,0.04811189,87947.0,87938.0,0.01148]
[1767204512556,0.01064428,87946.0,87938.0,0.01143717]
[1767204512756,0.01064428,87945.0,87938.0,0.01143717]
[1767204512935,0.01064428,87944.0,87938.0,0.01143717]
[1767204513273,0.01064428,87943.0,87938.0,0.00830509]
[1767204513480,0.01064428,87942.0,87938.0,0.00830509]
[1767204513631,0.00964604,87941.0,87938.0,0.00830509]
[1767204513841,0.00035363,87959.0,87940.0,0.01137138]
[1767204514072,0.00035363,87959.0,87942.0,0.09868003]
[1767204514273,0.00035363,87959.0,87944.0,0.03045333]
[1767204514639,0.01183363,87959.0,87945.0,0.01137074]
[1767204514833,0.01183363,87959.0,87944.0,0.0418242]
[1767204515038,0.01183363,87959.0,87944.0,0.09867848]
[1767204515238,0.01183363,87959.0,87945.0,0.04182407]
[1767204515441,0.01183363,87959.0,87948.0,0.01137035]
[1767204515688,0.00035363,87959.0,87950.0,0.01137009]
[1767204515893,0.00035363,87959.0,87951.0,0.01136996]
[1767204516061,0.00035363,87959.0,87952.0,0.01136983]
[1767204516486,0.00035363,87959.0,87950.0,0.01137009]
[1767204516800,0.01103537,87961.0,87951.0,0.03817017]
[1767204516965,0.01114135,87961.0,87951.0,0.04954013]
[1767204517167,0.01114135,87961.0,87951.0,0.03817017]
[1767204517370,0.05925324,87961.0,87951.0,0.03021575]
[1767204517590,0.05925324,87961.0,87941.0,0.03045333]
[1767204517787,0.05925324,87961.0,87942.0,0.01148]
[1767204518170,0.05925324,87961.0,87944.0,0.0418242]
[1767204518374,0.05925324,87961.0,87946.0,0.01137061]
[1767204518750,0.05925324,87961.0,87944.0,0.0418242]
[1767204519016,0.05925324,87961.0,87945.0,0.11424524]
[1767204519195,0.05925324,87961.0,87945.0,0.12561598]
[1767204519392,0.05925324,87961.0,87945.0,0.01137074]
[1767204519600,0.05925324,87961.0,87942.0,0.04193333]
[1767204519811,0.05925324,87961.0,87942.0,0.01148]
[1767204520013,0.05925324,87961.0,87940.0,0.03045333]
[1767204520397,0.05925324,87961.0,87939.0,0.04182484]
[1767204520601,0.05925324,87961.0,87939.0,0.03045333]
[1767204521413,0.05925324,87961.0,87938.0,0.03045333]
[1767204521615,0.04811189,87959.0,87936.0,0.03045333]
[1767204522553,0.04811189,87959.0,87935.0,0.03045333]
[1767204522714,0.04811189,87959.0,87934.0,0.04182549]
[1767204522926,0.04811189,87959.0,87935.0,0.11424524]
[1767204523129,0.04811189,87959.0,87935.0,0.14469857]
[1767204523331,0.04811189,87959.0,87935.0,0.11424524]
[1767204523540,0.04811189,87959.0,87934.0,0.03045333]
[1767204524340,0.04811189,87949.0,87933.0,0.03045333]
[1767204524539,0.04811189,87947.0,87934.0,0.03045333]
[1767204524772,0.04811189,87945.0,87934.0,0.03045333]
[1767204525131,0.04811189,87945.0,87933.0,0.03045333]
[1767204525351,0.04811189,87945.0,87933.0,0.04561817]
[1767204525696,0.01148,87946.0,87935.0,0.01137203]
[1767204525877,0.00010598,87961.0,87939.0,0.05685697]
[1767204526080,0.00010598,87961.0,87942.0,0.06822672]
[1767204526309,0.00948352,87960.0,87951.0,0.01136996]
[1767204526503,0.00010598,87961.0,87952.0,0.03183694]
[1767204526742,0.00010598,87961.0,87950.0,0.01137009]
[1767204526743,0.01138018,87959.0,87950.0,0.01137009]
[1767204526934,0.01138018,87959.0,87947.0,0.04182381]
[1767204527170,0.01138018,87959.0,87947.0,0.03045333]
[1767204527339,0.01138018,87959.0,87947.0,0.0986757]
[1767204527522,0.01138018,87959.0,87948.0,0.01137035]
[1767204527719,0.01138018,87959.0,87949.0,0.04126335]
[1767204527977,0.01138018,87959.0,87949.0,0.05263357]
[1767204528180,0.01138018,87959.0,87951.0,0.00060858]
[1767204528302,0.00010598,87961.0,87951.0,0.00060858]
[1767204528509,0.01148,87960.0,87951.0,0.00060858]
[1767204528709,0.01148,87960.0,87952.0,0.11424524]
[1767204529010,0.01148,87960.0,87951.0,0.00060858]
[1767204529895,0.05809311,87960.0,87951.0,0.00060858]
[1767204531091,0.01148,87960.0,87951.0,0.00060858]
[1767204533408,0.04661311,87959.0,87951.0,0.00060858]
[1767204533562,0.04661311,87959.0,87940.0,0.06150277]
[1767204533563,0.04626366,87950.0,87944.0,0.02873277]
[1767204533964,0.00548,87952.0,87944.0,0.02063465]
[1767204534168,0.01148,87952.0,87950.0,0.000549]
[1767204534369,0.01148,87952.0,87944.0,0.04094566]
[1767204534552,0.01148,87952.0,87943.0,0.04094566]
[1767204534753,0.01148,87952.0,87944.0,0.01251916]
[1767204535400,0.01148,87952.0,87945.0,0.04094566]
[1767204536269,0.05809311,87952.0,87944.0,0.04094566]
[1767204536516,0.05809311,87952.0,87944.0,0.04058997]
[1767204536715,0.05809311,87952.0,87936.0,0.01148]
[1767204536915,0.05809311,87952.0,87935.0,0.01148]
[1767204540150,0.04661311,87971.0,87953.0,0.01639744]
[1767204540408,0.06875558,87970.0,87953.0,0.01639744]
[1767204540587,0.06875558,87970.0,87946.0,0.01137061]
[1767204540588,0.00055,87953.0,87946.0,0.06150277]
[1767204540787,0.00055,87953.0,87947.0,0.00615028]
[1767204541011,0.04661311,87952.0,87946.0,0.00035363]
[1767204541187,0.04661311,87952.0,87935.0,0.01639744]
[1767204541188,0.04661311,87952.0,87935.0,0.06150277]
[1767204541387,0.04661311,87952.0,87935.0,0.06160875]
[1767204541588,0.04661311,87952.0,87936.0,0.01675107]
[1767204542033,0.04661311,87952.0,87936.0,0.02812297]
[1767204542231,0.04661311,87952.0,87937.0,0.12561701]
[1767204542410,0.04661311,87952.0,87937.0,0.11424524]
[1767204543055,0.04606411,87952.0,87939.0,0.01137151]
[1767204543436,0.04606411,87952.0,87938.0,0.06150277]
[1767204543606,0.04606411,87952.0,87937.0,0.06150277]
[1767204544098,0.04606411,87952.0,87938.0,0.06150277]
[1767204544918,0.04606411,87952.0,87935.0,0.00010598]
[1767204545142,0.04661311,87947.0,87935.0,9.8e-07]
[1767204545341,0.01148,87946.0,87935.0,9.8e-07]
[1767204546349,0.05809311,87946.0,87935.0,9.8e-07]
[1767204546528,0.0002,87948.0,87935.0,0.01730105]
[1767204546729,0.01148,87947.0,87936.0,0.01730007]
[1767204546974,0.01148,87947.0,87937.0,0.10148345]
[1767204547486,0.01148,87947.0,87935.0,9.8e-07]
[1767204547688,0.05809311,87947.0,87935.0,9.8e-07]
[1767204547915,0.04561486,87976.0,87940.0,0.01809832]
[1767204548048,0.04661311,87961.0,87947.0,0.000104]
[1767204548240,0.01148,87960.0,87947.0,0.000104]
[1767204548749,0.04661311,87959.0,87945.0,0.01137074]
[1767204548976,0.04661311,87959.0,87928.0,0.09983125]
[1767204549177,0.04705811,87945.0,87933.0,0.01137229]
[1767204549396,0.05809311,87945.0,87933.0,0.01137229]
[1767204549599,0.05809311,87945.0,87928.0,0.00073046]
[1767204551023,0.05809311,87945.0,87930.0,0.05686297]
[1767204551239,0.05809311,87945.0,87931.0,0.06823507]
[1767204551402,0.05809311,87945.0,87933.0,0.01137229]
[1767204551582,0.05809311,87945.0,87935.0,0.01137301]
[1767204552184,0.05809311,87945.0,87935.0,9.8e-07]
[1767204553076,0.05809311,87945.0,87935.0,0.01137301]
[1767204553279,0.05809311,87945.0,87935.0,0.07399511]
[1767204553535,0.05809311,87945.0,87935.0,0.06262308]
[1767204553746,0.05809311,87945.0,87935.0,9.8e-07]
[1767204555115,0.04661311,87959.0,87928.0,0.01878695]
[1767204555346,0.04661311,87957.0,87929.0,0.01809832]
[1767204555574,0.04661311,87955.0,87929.0,0.01809832]
[1767204555764,0.04661311,87955.0,87928.0,0.00068863]
[1767204555943,0.04661311,87955.0,87928.0,0.00758146]
[1767204556318,0.9065553,87950.0,87928.0,0.00068863]
[1767204556537,0.05809311,87949.0,87928.0,0.00068863]
[1767204557741,0.04661311,87949.0,87928.0,0.01206157]
[1767204557923,0.0003532,87959.0,87928.0,0.01206157]
[1767204557924,0.04661311,87947.0,87928.0,0.01206157]
[1767204558119,0.04661311,87945.0,87929.0,0.01030467]
[1767204558326,0.01148,87944.0,87930.0,0.08633413]
[1767204558542,0.01148,87944.0,87930.0,0.029471]
[1767204558762,0.04661311,87943.0,87929.0,0.01030467]
[1767204559325,0.01148,87942.0,87929.0,0.02167748]
[1767204559542,0.04646438,87943.0,87929.0,0.01030467]
[1767204559743,0.01148,87942.0,87928.0,0.0689262]
[1767204559949,0.06042839,87942.0,87928.0,0.00068863]
[1767204560571,0.0473051,87972.0,87943.0,0.00661832]
[1767204560779,0.04894839,87966.0,87944.0,0.01148]
[1767204560978,0.04894839,87966.0,87945.0,0.00994461]
[1767204561194,0.04894839,87966.0,87944.0,0.01148]
[1767204561675,0.04894839,87966.0,87940.0,0.06822831]
[1767204562037,0.04894839,87966.0,87942.0,0.01148]
[1767204563663,0.04894839,87966.0,87941.0,0.01137126]
[1767204563860,0.04894839,87966.0,87941.0,0.02285126]
[1767204564103,0.04894839,87966.0,87942.0,0.04063762]
[1767204565088,0.01148,87965.0,87947.0,0.00826161]
[1767204565281,0.06042839,87964.0,87947.0,0.07648424]
[1767204565646,0.06042839,87964.0,87947.0,0.01963209]
[1767204565983,0.04894839,87964.0,87947.0,0.00826161]
[1767204566192,0.04894839,87964.0,87946.0,0.01137061]
[1767204566193,0.01148,87963.0,87949.0,0.01963183]
[1767204566329,0.01148,87963.0,87949.0,0.00826161]
[1767204566730,0.01148,87963.0,87950.0,0.00826161]
[1767204567756,0.01148,87963.0,87951.0,0.00826161]
[1767204568224,0.01148,87963.0,87951.0,0.0489143]
[1767204568225,0.01037776,87963.0,87951.0,0.0489143]
[1767204568448,0.01037776,87963.0,87953.0,0.04065269]
[1767204569416,0.01037776,87963.0,87955.0,0.04065269]
[1767204569771,0.04894839,87969.0,87956.0,0.06821571]
[1767204569966,0.01148,87968.0,87956.0,0.04065269]
[1767204570163,0.04894839,87967.0,87953.0,0.04065269]
[1767204570411,0.04894839,87967.0,87953.0,0.12252214]
[1767204570656,0.04894839,87967.0,87953.0,0.05202239]
[1767204570868,0.04894839,87967.0,87954.0,0.01136957]
[1767204571082,0.04894839,87967.0,87955.0,0.04065269]
[1767204571801,0.04894839,87967.0,87953.0,0.04065269]
[1767204572218,0.04894839,87967.0,87952.0,0.04065269]
[1767204572595,0.04894839,87967.0,87952.0,0.06788269]
[1767204572802,0.04916739,87967.0,87952.0,0.06788269]
[1767204573521,0.04916739,87967.0,87953.0,0.04065269]
[1767204574766,0.04916739,87967.0,87956.0,0.04065269]
[1767204574917,0.04916739,87967.0,87956.0,0.05202201]
[1767204575123,0.04916739,87967.0,87957.0,0.08598361]
[1767204576107,0.04849913,87958.0,87943.0,0.06097987]
[1767204576333,0.000219,87967.0,87929.0,0.01137281]
[1767204576334,0.04894839,87956.0,87934.0,0.06097987]
[1767204576526,0.04894839,87954.0,87942.0,0.0002]
[1767204576982,0.04894839,87949.0,87930.0,0.01148]
[1767204577127,0.04894839,87947.0,87930.0,0.01148]
[1767204578844,0.04894839,87947.0,87928.0,0.00068863]
[1767204579680,0.61727859,87940.0,87928.0,0.00068863]
[1767204579879,0.61727859,87940.0,87914.0,0.01137475]
[1767204579880,0.06042839,87939.0,87914.0,0.07245987]
[1767204580090,0.06042839,87939.0,87914.0,0.01148]
[1767204580859,0.06042839,87939.0,87914.0,0.0118332]
[1767204581297,0.06042839,87939.0,87914.0,0.0003532]
[1767204582204,0.06042839,87939.0,87914.0,0.11300078]
[1767204583712,0.06042839,87939.0,87914.0,0.0003532]
[1767204586092,0.04894839,87958.0,87939.0,0.000549]
[1767204586309,0.01783171,87959.0,87939.0,0.000549]
[1767204586310,0.04894839,87949.0,87939.0,0.000549]
[1767204586522,0.04894839,87949.0,87932.0,0.04949673]
[1767204586523,0.01148,87948.0,87932.0,0.04949673]
[1767204586741,0.04557378,87947.0,87927.0,0.04717653]
[1767204586956,0.04557378,87947.0,87926.0,0.01148]
[1767204587170,0.04557378,87943.0,87925.0,0.01148]
[1767204589066,0.0005339,87944.0,87926.0,0.04717653]
[1767204589237,0.06346315,87944.0,87926.0,0.04717653]
[1767204590154,0.0005339,87944.0,87926.0,0.04717653]
[1767204590776,0.04602692,87943.0,87926.0,0.04717653]
[1767204591325,0.04602692,87943.0,87942.0,0.00060864]
[1767204592515,0.04602692,87943.0,87942.0,0.00096184]
[1767204595406,0.05750692,87943.0,87942.0,0.00096184]
[1767204595616,0.04602692,87942.0,87925.0,0.01148]
[1767204595821,0.04602692,87939.0,87923.0,0.03041598]